Cogmind - Beta 16.1 @@@ ROGUE MODE // 2026.02.21 @ 18:41:07 Player: Kaisercar Result: Destroyed by P-70 Sage with High-powered Shock Rifle Performance ------------- Evolutions (5) 2500 Regions Visited (9) 1800 Robots Destroyed (95) 475 Value Destroyed (3849) 3849 Prototype IDs (31) 620 Alien Tech Used (0) 0 Bonus (3735) 3735 TOTAL SCORE: 12979 Bonus ------- High Alert Combat Kills 202 Follower Combat Kills 1442 Network Hubs Disabled 200 Registered with UFD 300 Met Optimus in HQ 500 Built Enhanced Grunts 300 A7 Reached Mainframe 300 Met R17 at Cetus 500 Friendly Fire -9 Cogmind --------- Core Integrity 0/1000 Matter 237/300 Energy 56/100 System Corruption 20% Temperature Cool (0) Movement Hovering (70) Location -5/Factory Parts ------- > --- POWER (2) -------- (None) > --- PROPULSION (5) --- Gyrokinetic Inverter > --- UTILITY (7) ------ Surveybot 17 Chip Improved System Shield > --- WEAPON (3) ------- Backup Laser III > --- INVENTORY (5) ---- Large Storage Unit Phase Shifter Dynamic Insulation System Proton Cannon CPS Tube (2) Peak State ------------ > --- POWER ------------ Neutrino Core Quantum Reactor > --- PROPULSION ------- Carbon-fiber Leg Improved Titanium Leg Improved VSS Leg Myomer Leg > --- UTILITY ---------- Large Storage Unit Experimental Terrain Scanner Surveybot 17 Chip Core Analyzer Improved Hacking Suite Improved System Shield > --- WEAPON ----------- Advanced Variable Charge Gun Advanced KE Penetrator Advanced KE Penetrator > --- INVENTORY -------- Advanced Heat Sink Advanced Heat Sink Advanced Signal Interpreter Seismic Detector Phase Shifter Improved Medium Armor Plating Dynamic Insulation System High-powered Tractor Beam Advanced Variable Charge Gun Proton Cannon EMP Blaster Heavy Rocket Launcher CPS Tube Heavy Hammer DRS Beacon [Rating: 95] Favorites ----------- Power Cooled Ion Engine Engine Cooled Ion Engine Power Core Fission Core Reactor Quantum Reactor Propulsion Improved Aluminum Leg Treads Light Treads Leg Improved Aluminum Leg Hover Unit Gyrokinetic Inverter Utility Large Storage Unit Device Advanced Heat Sink Storage Large Storage Unit Processor Surveybot 17 Chip Hackware Hacking Suite Protection Hardened Light Armor Plating Weapon Assault Rifle Energy Gun Advanced Variable Charge Gun Energy Cannon Phase Cannon Ballistic Gun Assault Rifle Ballistic Cannon Battle Cannon Launcher EMP Blaster Impact Weapon Heavy Hammer Slashing Weapon Ripper Build | -11 -10 -10 -9 -6 -6 -6 -6 -6 -5 ------- Run | Yrd Mat Sub Scr Fac Ext Cet Arc Hub Fac Slots Evolved 10 | . . . . 8 . . . . 2 Power 1 | . . . . 1 . . . . . Propulsion 3 | . . . . 2 . . . . 1 Utility 5 | . . . . 4 . . . . 1 Weapon 1 | . . . . 1 . . . . . Parts Attached 91 | 7 6 7 10 16 21 8 4 1 11 Power 12 | 1 1 1 . 3 4 1 1 . . Engine 5 | 1 1 1 . 1 1 . . . . Core 6 | . . . . 2 3 . 1 . . Reactor 1 | . . . . . . 1 . . . Propulsion 26 | 2 . 2 4 5 4 1 1 1 6 Treads 2 | 2 . . . . . . . . . Leg 22 | . . 2 4 5 4 1 1 1 4 Wheel . | . . . . . . . . . . Hover 2 | . . . . . . . . . 2 Flight . | . . . . . . . . . . Utility 25 | 2 1 1 2 6 7 1 2 . 3 Device 13 | 1 . . 2 3 4 1 . . 2 Storage 2 | 1 1 . . . . . . . . Processor 2 | . . . . 1 1 . . . . Hackware 3 | . . . . . 1 . 2 . . Protection 5 | . . 1 . 2 1 . . . 1 Artifact . | . . . . . . . . . . Weapon 28 | 2 4 3 4 2 6 5 . . 2 Energy Gun 8 | 1 . 1 . 1 1 3 . . 1 Energy Cannon 3 | . . 1 . 1 1 . . . . Ballistic Gun 8 | 1 . . 2 . 3 2 . . . Ballistic Cannon 2 | . . . 2 . . . . . . Launcher 5 | . 4 . . . . . . . 1 Special Weapon . | . . . . . . . . . . Impact Weapon 1 | . . 1 . . . . . . . Slashing Weapon 1 | . . . . . 1 . . . . Piercing Weapon . | . . . . . . . . . . Special Melee Weapon . | . . . . . . . . . . Unidentified Prototypes 4 | . 1 . . 1 . 2 . . . Corrupted Parts 1 | . . . . . . . . . 1 System Corruption 7 | . . . . . . . . . 7 Parts Lost 31 | . . . . . 6 1 . 1 23 Power 3 | . . . . . 1 . . . 2 Propulsion 11 | . . . . . 2 . . 1 8 Utility 8 | . . . . . 1 . . . 7 Weapon 9 | . . . . . 2 1 . . 6 Highest Loss Streak 15 | . . . . . 3 1 . 1 15 To Critical Strikes 1 | . . . . . . 1 . . . Average Backups 12 | 3 9 13 12 11 13 13 14 14 11 Power 1 | . . 1 1 . . . . . . Propulsion 1 | 1 3 3 1 1 1 . . . . Utility 5 | . 2 5 5 4 4 7 8 8 6 Weapon 3 | . 2 3 3 4 5 4 5 5 3 Tool/Special . | . . . . . . . . . . Unused Backups 31 | . 5 5 8 2 5 . 1 . 5 Power 4 | . 2 . 2 . . . . . . Propulsion 9 | . 2 2 1 1 3 . . . . Utility 13 | . . 3 4 1 1 . 1 . 3 Weapon 4 | . 1 . 1 . 1 . . . 1 Tool/Special 1 | . . . . . . . . . 1 Average Slot Usage (%) 92 | . 99 100 91 83 87 100 100 97 78 Engine 9 | . 13 14 14 4 1 3 . . . Core 2 | . . . . 6 9 6 6 6 3 Treads 2 | . 27 5 . . . . . . . Leg 22 | . . 22 26 22 23 26 26 23 16 Device 10 | . 14 2 11 15 10 12 11 6 8 Storage 10 | . 14 14 14 5 5 6 6 6 3 Processor 3 | . . . . 4 5 13 13 13 10 Hackware 2 | . . . . . 5 6 7 13 10 Protection 3 | . . 11 1 4 5 . . . . Energy Gun 4 | . 14 4 1 . 2 12 11 6 4 Energy Cannon 2 | . . 8 . 2 8 1 . . . Ballistic Gun 8 | . 2 13 11 4 4 5 7 12 3 Ballistic Cannon 3 | . . . 8 3 . . . . . Launcher 1 | . 11 . . . . . . . . Peak Build Rating 95 | 7 13 17 31 86 88 88 91 95 95 Average Rating 42 | 4 10 15 20 76 85 83 89 92 74 On Entrance 49 | . 7 13 17 28 82 73 88 91 94 Avg Prop Armor Cover (%) 3 | . . . 7 3 3 . . . 3 Naked Turns . | . . . . . . . . . . Heaviest Build 82 | 14 34 43 39 70 82 72 72 72 77 Greatest Support 120 | 40 40 40 42 120 120 80 75 75 75 Greatest Overweight (x) 12 | . . 1 12 . 1 . . 1 2 Average Overweight (x) . | . . . 1 . . . . . . Largest Inventory Capacity 15 | 8 15 15 15 15 15 15 15 15 15 Average Capacity 14 | 7 10 15 15 15 15 15 15 15 12 Most Carried 15 | 5 15 15 15 15 15 15 15 15 15 Average Carried 14 | 3 9 14 14 13 14 14 14 15 11 Final Capacity 15 | 8 15 15 15 15 15 15 15 15 5 Final Carried 15 | 5 15 15 15 15 14 15 15 15 5 Class Distribution -------------------- 66% | Mutant 8% | Commander-Gunner 7% | Commander-Tank 6% | Tank Dominant Class ---------------- Mutant | -10/Materials Mutant | -10/Subcaves Mutant | -9/Scraptown Mutant | -6/Factory Commander-Tank | -6/Extension Commander-Gunner | -6/Cetus Commander-Gunner | -6/Archives Commander-Skirmisher | -6/Hub_04(d) Scavenger-Mutant | -5/Factory Resources | -11 -10 -10 -9 -6 -6 -6 -6 -6 -5 ----------- Run | Yrd Mat Sub Scr Fac Ext Cet Arc Hub Fac Matter Collected 2263 | 288 155 191 155 470 526 177 54 . 247 Remotely . | . . . . . . . . . . Salvage Created 4095 | 76 485 344 . 530 1315 119 177 282 767 Parts 210 | 7 37 25 . 23 60 5 9 15 29 Haulers Intercepted 1 | . . . . . . . . 1 . Recyclers Shooed 5 | 1 2 . . . 2 . . . . Parts Field Recycled . | . . . . . . . . . . Retrieved Matter . | . . . . . . . . . . Parts Self-Destructed 14 | . . 14 . . . . . . . Prevented . | . . . . . . . . . . Parts Restored . | . . . . . . . . . . Kills | -11 -10 -10 -9 -6 -6 -6 -6 -6 -5 ------- Run | Yrd Mat Sub Scr Fac Ext Cet Arc Hub Fac Combat Hostiles Destroyed 67 | . 10 8 . 10 20 2 1 2 14 Guns 27 | . 2 3 . 1 10 2 1 1 7 Cannons 24 | . . 5 . 9 10 . . . . AOE 15 | . 8 . . . . . . 1 6 Classes Destroyed 14 | 2 6 2 . 1 2 . . 1 . Worker 6 | . 2 . . 2 . . . 2 . Builder 3 | . 2 . . . . . . 1 . Tunneler 2 | 1 . . . . 1 . . . . Hauler 1 | . . . . . . . . 1 . Recycler 4 | 1 2 . . 1 . . . . . Operator 7 | . 1 . . 1 2 . 3 . . Watcher 5 | . 2 . . 1 1 . . 1 . Swarmer 14 | . 9 1 . 4 . . . . . Grunt 24 | . 1 . . 5 7 . . 1 10 Brawler 2 | . . . . . 2 . . . . Sentry 12 | . . 1 . . 9 . 1 1 . Hunter 4 | . . . . . 1 . . . 3 Programmer 3 | . . . . 1 1 . . . 1 Cetus Guard 2 | . . . . . . 2 . . . Subdweller 6 | . . 6 . . . . . . . Best Kill Streak 10 | 1 10 2 . 5 5 2 3 7 5 Combat Bots Only 6 | . 6 2 . 4 5 2 1 2 5 Max Kills in Single Turn 6 | 1 4 1 . 2 1 2 1 6 3 Gunslinging . | . . . . . . . . . . Exploded 3 | . 3 . . . . . . 1 3 Melee . | . . . . . . . . . . Uniques/NPCs Destroyed . | . . . . . . . . . . Combat | -11 -10 -10 -9 -6 -6 -6 -6 -6 -5 -------- Run | Yrd Mat Sub Scr Fac Ext Cet Arc Hub Fac Hostile Shots Fired 651 | . 28 33 . 62 238 38 10 38 204 Missed 216 | . 9 11 . 14 73 16 4 17 72 Hits 435 | . 19 22 . 48 165 22 6 21 132 Melee 3 | . . . . . 3 . . . . Projectile 432 | . 19 22 . 48 162 22 6 21 132 AOE 5 | . . 1 . . . . . . 4 Critical Strikes 27 | . . 1 . 2 6 6 1 . 11 Damage Taken 7532 | . 200 528 . 628 2362 529 171 255 2859 Core 1710 | . 25 143 . 73 354 88 . 11 1016 Absorbed by Shields 484 | . . . . 225 184 75 . . . Ignored by Resistances 30 | . . . . . 30 . . . . Regen/Repaired (Parts) 89 | . . . 89 . . . . . . Core Remaining (%) 56 | 100 . . 32 . . . . 38 . Volleys Fired 248 | 6 17 51 . 35 69 17 17 3 33 Largest 3 | 2 2 2 . 3 3 3 3 3 3 Hottest 250 | 60 60 100 . 150 203 250 195 150 195 Shots Fired 495 | 12 18 75 . 72 173 47 33 10 55 Gun 260 | 12 5 35 . 10 70 38 33 10 47 Cannon 210 | . . 36 . 62 103 9 . . . Launcher 25 | . 13 4 . . . . . . 8 Special . | . . . . . . . . . . Kinetic 158 | 6 1 25 . 42 45 11 7 7 14 Thermal 287 | 6 4 46 . 30 103 36 26 3 33 Explosive 3 | . . . . . . . . . 3 Electromagnetic 47 | . 13 4 . . 25 . . . 5 Robot Hit Streak 18 | 7 2 8 . 11 18 11 5 2 5 Robot Miss Streak 6 | 2 5 5 . 4 6 2 4 1 3 Penetration Max 1 | . . . . 1 . 1 . . 1 Secondary Targets 2 | . . . . . . . . . 2 Max Gunslinging Chain 1 | . . . . . . . . . 1 Shots Hit Robots 282 | 9 4 28 . 43 120 19 19 4 36 Core Hits 205 | 3 20 12 . 20 81 12 11 15 31 Critical Kills 3 | . . . . 1 . . . 1 1 Critical Parts Destroyed 3 | . . . . . . 1 . 1 1 Critical Strikes 7 | . . . . 1 . 2 . 2 2 Destroy 6 | . . . . 1 . 2 . 2 1 Smash 1 | . . . . . . . . . 1 Melee Attacks 32 | . . 1 . 21 1 . . 1 8 Impact 31 | . . 1 . 21 . . . 1 8 Slashing 1 | . . . . . 1 . . . . Piercing . | . . . . . . . . . . Sneak Attacks 2 | . . . . 1 . . . . 1 Combat Hostiles . | . . . . . . . . . . Follow-up Attacks . | . . . . . . . . . . Damage Inflicted 10897 | 108 738 656 . 1595 3633 655 711 1030 1771 Guns 3873 | 108 36 224 . 231 1124 469 711 132 838 Cannons 3974 | . . 332 . 996 2460 186 . . . Explosions 2784 | . 702 100 . 235 . . . 898 849 Melee 218 | . . . . 119 35 . . . 64 Ramming 48 | . . . . 14 14 . . . 20 Kinetic 2137 | 51 12 174 . 501 714 178 77 132 298 Thermal 5762 | 57 92 382 . 961 2460 477 634 . 699 Explosive 588 | . 158 . . . . . . . 430 Electromagnetic 2144 | . 476 100 . . 410 . . 898 260 Impact 183 | . . . . 119 . . . . 64 Slashing 35 | . . . . . 35 . . . . Piercing . | . . . . . . . . . . Highest Corruption 20 | . 1 1 1 3 5 5 5 5 20 Average Corruption 3 | . 1 1 1 2 4 5 5 5 3 Corruption Purged . | . . . . . . . . . . Corruption Blocked . | . . . . . . . . . . Effects 87 | . 3 9 4 6 36 17 6 4 2 Message Errors 16 | . . 1 1 . 9 3 2 . . Matter Fused 19 | . . 3 1 . 5 7 1 1 1 Heat Flow Errors 8 | . . 2 1 . 1 3 1 . . Energy Discharges 13 | . . . . 1 9 2 1 . . Parts Rejected 3 | . . . . 1 1 . . . 1 Parts Fused 2 | . 1 . . . 1 . . . . Data Loss (minor) 7 | . . . 1 1 4 . 1 . . Data Loss (major) 9 | . 2 1 . . 4 . . 2 . Misfires 6 | . . 2 . 1 . 2 . 1 . Alerts 2 | . . . . 1 1 . . . . Weapon Failures 2 | . . . . 1 1 . . . . Overload Shots . | . . . . . . . . . . Overflow Damage 291 | . 19 5 . 76 25 . . 15 151 Projectiles 48 | . . 5 . 18 25 . . . . Explosions 159 | . 19 . . 38 . . . 15 87 Melee 84 | . . . . 20 . . . . 64 Knockbacks 5 | . . . . 5 . . . . . Impact . | . . . . . . . . . . Kinetic 5 | . . . . 5 . . . . . Secondary . | . . . . . . . . . . Self-Inflicted Damage 330 | . 49 . . 14 . . . 100 167 Shots 9 | . 4 . . . . . . 1 4 Rammed 11 | . . . . . . . . . 11 Targets Rammed 12 | . . . . . 1 . . . 11 Kicked 1 | . . . . . 1 . . . . Crushed . | . . . . . . . . . . Highest Temperature 610 | . . 248 116 202 610 204 206 99 327 Average Temperature 104 | . . 28 59 79 150 67 53 51 98 Received Heat Transfer 1971 | . 6 132 . 162 952 31 27 30 631 Effects 9 | . . . . . 8 . . . 1 Shutdowns 3 | . . . . . 3 . . . . Energy Bleed 2 | . . . . . 1 . . . 1 Interference 1 | . . . . . 1 . . . . Matter Decay 1 | . . . . . 1 . . . . Short Circuit 1 | . . . . . 1 . . . . Damage (core) 1 | . . . . . 1 . . . . Siege Activations . | . . . . . . . . . . Martial Activations . | . . . . . . . . . . Shielding Activations . | . . . . . . . . . . Robots Disrupted . | . . . . . . . . . . Combat Hostiles . | . . . . . . . . . . Robots Corrupted 1 | . . . . . . . . . 1 Combat Hostiles 1 | . . . . . . . . . 1 Parts Fried 6 | . 2 . . 3 . . . 1 . Impact Corruptions 2 | . . . . 1 . . . . 1 Robots Melted . | . . . . . . . . . . Combat Hostiles . | . . . . . . . . . . Parts Melted 10 | . . . . 2 1 2 2 . 3 Heat Transferred 7304 | 125 100 519 . 1001 3113 779 777 . 890 Parts Sabotaged . | . . . . . . . . . . Parts Stolen . | . . . . . . . . . . Parts Stripped . | . . . . . . . . . . Power Chain Reactions 6 | . 4 . . . . . . . 2 Alert | -11 -10 -10 -9 -6 -6 -6 -6 -6 -5 ------- Run | Yrd Mat Sub Scr Fac Ext Cet Arc Hub Fac Maximum Alert Level 3 | . 1 . . 1 2 2 1 3 2 Low Security (%) 52 | 100 71 . . 65 73 . 24 70 . Level 1 38 | . 28 . . 34 19 93 75 27 50 Level 2 8 | . . . . . 6 6 . . 49 Level 3 . | . . . . . . . . 2 . Level 4 . | . . . . . . . . . . Level 5 . | . . . . . . . . . . High Security . | . . . . . . . . . . Max Security . | . . . . . . . . . . Peak Influence 760 | 5 291 . . 319 609 425 231 760 546 Initial 372 | . . . . . 133 333 107 73 372 Average 206 | . 141 . . 152 168 337 197 136 402 Influence Increases 4239 | 10 367 40 . 568 1150 368 254 917 565 Destroy 0b10 Robot/C 1780 | . 200 40 . 200 580 160 80 220 300 Destroy 0b10 Robot/NC 170 | 10 45 . . 25 35 10 15 30 . Destroy Leader 274 | . 44 . . 32 74 . . 74 50 Allied During Kill 914 | . . . . . 371 170 95 246 32 Successful Hack 68 | . 6 . . 12 30 8 . . 12 Disable Machine 585 | . 45 . . 180 30 . 60 225 45 Destroy Structure 328 | . 27 . . 59 30 20 4 122 66 Lose Combat Pursuer 120 | . . . . 60 . . . . 60 Influence Decreases 3826 | 10 292 115 . 294 827 696 312 368 912 Entered New Map 1130 | . . 37 . . 141 264 162 138 388 Time Decay 1926 | 10 292 78 . 294 546 302 70 80 254 Lost Part 310 | . . . . . 60 10 . 10 230 Lost Ally 460 | . . . . . 80 120 80 140 40 Squads Dispatched 17 | . 1 . . 5 2 . . 4 5 Investigation 10 | . . . . 3 2 . . 2 3 Extermination 3 | . . . . 2 . . . . 1 Reinforcement 3 | . 1 . . . . . . 1 1 Assault . | . . . . . . . . . . Garrison 1 | . . . . . . . . 1 . Intercept . | . . . . . . . . . . Searches Triggered . | . . . . . . . . . . Construction Impeded 1 | . . . . . . . . 1 . Haulers Reinforced 1 | . . . . . . . . . 1 Active Scanning Responses . | . . . . . . . . . . Cargo Convoy Interrupts . | . . . . . . . . . . Stealth | -11 -10 -10 -9 -6 -6 -6 -6 -6 -5 --------- Run | Yrd Mat Sub Scr Fac Ext Cet Arc Hub Fac Distress Signals 8 | . 2 . . . 2 2 . 1 1 Communications Jammed . | . . . . . . . . . . Distress Signals . | . . . . . . . . . . Times Spotted 140 | . 14 20 . 17 37 10 14 7 21 Peak Tracking Total 8 | . 5 7 . 4 8 5 3 5 5 Tactical Retreats 4 | . . . . 1 . . . . 3 Traps | -11 -10 -10 -9 -6 -6 -6 -6 -6 -5 ------- Run | Yrd Mat Sub Scr Fac Ext Cet Arc Hub Fac Traps Triggered 3 | . 2 . . . 1 . . . . Indirectly . | . . . . . . . . . . Trap Hack Attempts . | . . . . . . . . . . Triggered . | . . . . . . . . . . Disarmed . | . . . . . . . . . . Reprogrammed . | . . . . . . . . . . Reused . | . . . . . . . . . . Traps Extracted . | . . . . . . . . . . Installed . | . . . . . . . . . . Triggered . | . . . . . . . . . . Machines | -11 -10 -10 -9 -6 -6 -6 -6 -6 -5 ---------- Run | Yrd Mat Sub Scr Fac Ext Cet Arc Hub Fac Machines Disabled 44 | . 4 2 . 12 4 . 4 15 3 Max in Single Turn 11 | . 2 1 . 11 1 . 1 11 1 Network Hub 1 | . . . . . . . . 1 . Machines Repaired . | . . . . . . . . . . Machines Dismantled . | . . . . . . . . . . Machines Sabotaged . | . . . . . . . . . . Overloaded Fab Kills . | . . . . . . . . . . Hacking | -11 -10 -10 -9 -6 -6 -6 -6 -6 -5 --------- Run | Yrd Mat Sub Scr Fac Ext Cet Arc Hub Fac Machines Accessed 35 | . 3 2 5 4 13 1 . 3 4 Terminals 19 | . 2 . . . 12 1 . 3 1 Fabricators . | . . . . . . . . . . Repair Stations . | . . . . . . . . . . Recycling Units 8 | . 1 . . 3 1 . . . 3 Scanalyzers 1 | . . . . 1 . . . . . Garrison Access . | . . . . . . . . . . Total Hacks 108 | . 10 6 39 6 28 1 . 5 13 Successful 71 | . 1 6 39 4 13 1 . 2 5 Failed 37 | . 9 . . 2 15 . . 3 8 Catastrophic 4 | . . . . 1 3 . . . . Database Lockouts . | . . . . . . . . . . Manual 33 | . 2 . . 3 14 2 . 5 7 Terminals 47 | . 7 . . . 27 1 . 5 7 Fabricators . | . . . . . . . . . . Repair Stations . | . . . . . . . . . . Recycling Units 13 | . 3 . . 3 1 . . . 6 Scanalyzers 3 | . . . . 3 . . . . . Garrison Access . | . . . . . . . . . . Terminal Hacks 56 | . 1 6 39 . 8 1 . . 1 Record 37 | . . 5 32 . . . . . . Robot Analysis 8 | . 1 . 6 . 1 . . . . Prototype ID Bank 1 | . . . . . 1 . . . . Open Door 6 | . . . . . 5 1 . . . Recall Investigation 2 | . . . . . 1 . . . 1 Proto ID Catalog 2 | . . 1 1 . . . . . . Fabricator Hacks . | . . . . . . . . . . Repair Station Hacks . | . . . . . . . . . . Recycling Unit Hacks . | . . . . . . . . . . Scanalyzer 1 | . . . . 1 . . . . . Insert Component 1 | . . . . 1 . . . . . Garrison Access Hacks . | . . . . . . . . . . Unauthorized Hacks 14 | . . . . 3 5 . . 2 4 Terminals 7 | . . . . . 4 . . 2 1 Botnet 5 | . . . . . 4 . . . 1 Sabotage 2 | . . . . . . . . 2 . Fabricators . | . . . . . . . . . . Repair Stations . | . . . . . . . . . . Recycling Units 7 | . . . . 3 1 . . . 3 Fedlink 7 | . . . . 3 1 . . . 3 Scanalyzers . | . . . . . . . . . . Garrison Access . | . . . . . . . . . . Data Cores Recovered 1 | . . . . . 1 . . . . Used . | . . . . . . . . . . Hacking Detections 19 | . 3 . . 1 11 1 . 1 2 Full Trace Events . | . . . . . . . . . . Feedback Events . | . . . . . . . . . . Feedback Blocked . | . . . . . . . . . . Robot Schematics Acquired . | . . . . . . . . . . Robots Built . | . . . . . . . . . . Authchips . | . . . . . . . . . . Time . | . . . . . . . . . . Total Robot Build Rating . | . . . . . . . . . . Part Schematics Acquired . | . . . . . . . . . . Parts Built . | . . . . . . . . . . Authchips . | . . . . . . . . . . Time . | . . . . . . . . . . Total Part Build Rating . | . . . . . . . . . . Part Studies Acquired . | . . . . . . . . . . Parts Repaired . | . . . . . . . . . . Time . | . . . . . . . . . . Parts Recycled . | . . . . . . . . . . Recycled Matter . | . . . . . . . . . . Retrieved Matter . | . . . . . . . . . . Retrieved Components . | . . . . . . . . . . Parts Scanalyzed 1 | . . . . 1 . . . . . Part Schematics Acquired . | . . . . . . . . . . Parts Damaged . | . . . . . . . . . . Bothacking | -11 -10 -10 -9 -6 -6 -6 -6 -6 -5 ------------ Run | Yrd Mat Sub Scr Fac Ext Cet Arc Hub Fac Used RIF Installer . | . . . . . . . . . . Robots Hacked . | . . . . . . . . . . Non-combat . | . . . . . . . . . . Combat . | . . . . . . . . . . Robot Hacks Applied . | . . . . . . . . . . Relay Couplers Released . | . . . . . . . . . . Fabnet Peak Effective % . | . . . . . . . . . . Robots Rewired 17 | . . . . . 17 . . . . Allies Hacked . | . . . . . . . . . . Hacks Repelled . | . . . . . . . . . . Allies | -11 -10 -10 -9 -6 -6 -6 -6 -6 -5 -------- Run | Yrd Mat Sub Scr Fac Ext Cet Arc Hub Fac Total Allies 29 | . . . . . 24 5 . . . Largest Group 22 | . . . . . 22 18 14 10 2 Highest-Rated Group 1021 | . . . . . 803 1021 763 637 185 Highest-Rated Ally 159 | . . . . . 159 159 96 96 96 Initial UFD Resources 46 | . . . . 24 40 42 42 42 46 Total Orders 3 | . . . . . . 3 . . . STAY 1 | . . . . . . 1 . . . ROAM 2 | . . . . . . 2 . . . Ally Attacks 256 | . . . . . 84 80 24 63 5 Total Damage 6069 | . . . . . 1397 1773 562 2240 97 Kills 38 | . . . . . 14 9 3 11 1 Allies Corrupted . | . . . . . . . . . . Allies Melted 1 | . . . . . . . . 1 . Intel | -11 -10 -10 -9 -6 -6 -6 -6 -6 -5 ------- Run | Yrd Mat Sub Scr Fac Ext Cet Arc Hub Fac Active Infowar (turns) 3947 | 32 762 313 1391 955 3 . . 161 330 Sensors 195 | . . . . . . . . . 195 Terrain 655 | . . . . 242 . . . 161 252 Structural 1639 | . . . 1391 248 . . . . . Seismic 2194 | 32 762 313 . 951 3 . . . 133 Robot Analysis Total 8 | . 1 . 6 . 1 . . . . Derelict Logs Recovered 4 | . . 1 3 . . . . . . Drone Launches . | . . . . . . . . . . Drone Recoveries . | . . . . . . . . . . Exploration | -11 -10 -10 -9 -6 -6 -6 -6 -6 -5 ------------- Run | Yrd Mat Sub Scr Fac Ext Cet Arc Hub Fac Turns Passed 10508 | 109 762 1601 3973 955 1575 663 158 161 551 Spaces Moved 5834 | 50 391 782 2038 680 1008 369 73 105 338 Core 75 | 9 . . 51 . . . . . 15 Treads 590 | 41 391 158 . . . . . . . Legs 5032 | . . 624 1987 680 1008 369 73 105 186 Wheels . | . . . . . . . . . . Hover 137 | . . . . . . . . . 137 Flight . | . . . . . . . . . . Fastest Speed 50 | 50 160 160 95 103 107 115 115 115 50 Average Speed 152 | 140 160 183 190 108 110 115 115 136 106 Slowest Speed 650 | 160 160 190 650 112 189 115 115 187 265 Overloaded Moves . | . . . . . . . . . . Propulsion Burnouts . | . . . . . . . . . . Robots Hopped . | . . . . . . . . . . Potential Cave-ins . | . . . . . . . . . . Cave-ins Triggered . | . . . . . . . . . . Exploration Rate (%) 49 | 4 55 46 88 22 85 80 75 24 11 Regions Visited 9 Branch Regions 6 Pre-discovered Areas 4 | . . . 3 1 . . . . . Known Exits Taken 2 | . . . . 1 . . . 1 . Unknown Exits Taken 7 | 1 1 1 1 . 1 1 1 . . Scrap Searched 10 | . . . 10 . . . . . . Spaces Dug 45 | . 7 1 . 17 . . . 1 19 Terrain Destroyed 351 | . 25 5 . 56 21 7 2 190 45 Melee 23 | . . . . 16 . . . 1 6 Projectile 59 | . . 5 . 11 21 7 2 7 6 AOE 269 | . 25 . . 29 . . . 182 33 Terrain Rammed 1 | . . . . 1 . . . . . Walls Destroyed . | . . . . . . . . . . Machines Disabled . | . . . . . . . . . . Actions | -11 -10 -10 -9 -6 -6 -6 -6 -6 -5 --------- Run | Yrd Mat Sub Scr Fac Ext Cet Arc Hub Fac Total 6979 | 75 511 873 2131 796 1334 574 118 112 455 Wait 484 | 6 70 10 43 14 114 168 18 . 41 Move 5825 | 49 390 781 2037 679 1007 368 72 104 338 Hop . | . . . . . . . . . . Pick Up 73 | 7 15 10 10 11 14 3 2 . 1 Fast Attach 44 | 5 4 . 10 5 8 4 . 1 7 Attach 25 | 2 . 3 . 7 6 1 . . 6 Detach 1 | . . . . . . 1 . . . Swap 65 | . 6 5 6 14 12 4 5 3 10 Drop 86 | . 9 12 25 9 19 8 4 . . Fire 248 | 6 17 51 . 35 69 17 17 3 33 Melee 32 | . . 1 . 21 1 . . 1 8 Ram 12 | . . . . 1 . . . . 11 Kick 1 | . . . . . 1 . . . . Crush . | . . . . . . . . . . Escape Stasis . | . . . . . . . . . . Rewire 83 | . . . . . 83 . . . . Trap . | . . . . . . . . . . Miscellaneous . | . . . . . . . . . . Route ------- -11/Scrapyard -10/Materials (discovered 3 exits: [*Mat] / [*Min] / *Sub) -10/Subcaves (discovered 2 exits: [*Mat] / *Scr) -9/Scraptown (discovered 2 exits: *Fac x2) -6/Factory (discovered 8 exits: Fac x4 / Low x2 / *Ext x2) -6/Extension (discovered 2 exits: *Fac / *Cet) -6/Cetus (discovered 2 exits: *Fac / *Arc) -6/Archives -6/Hub_04(d) (discovered 2 exits: *Fac x2) -5/Factory (discovered 4 exits: Fac x2 / Upp x2) History --------- Turn | Location | Event 15 | -11/Scrapyard | Discovered new exit (range 16) 110 | -11/Scrapyard | Entered Materials 297 | -10/Materials | Discovered new exit (range 16) 312 | -10/Materials | Build established: Mutant 427 | -10/Materials | Discovered new exit (range 8) 860 | -10/Materials | Discovered new exit (range 9) 872 | -10/Materials | Entered Subcaves 873 | -10/Subcaves | Approached by a straggling Scientist 885 | -10/Subcaves | Learned Materials stockpile data 1115 | -10/Subcaves | Ambushed by swarm of Subdwellers 1135 | -10/Subcaves | Scientist uncovered a shortcut to Scraptown 1286 | -10/Subcaves | A swath of the cavern ceiling suddenly collapsed 1412 | -10/Subcaves | Core integrity fell below 50% 1780 | -10/Subcaves | Visited 4L-MR0's lab 1802 | -10/Subcaves | Found Arachnoskeleton 1925 | -10/Subcaves | Discovered new exit (range 4) 1950 | -10/Subcaves | Visited Clippyterm 1956 | -10/Subcaves | Learned Factory garrison access intel 1956 | -10/Subcaves | Learned 40 Factory zone layouts 2473 | -10/Subcaves | Entered Scraptown 2827 | -9/Scraptown | System corruption cleaned by C-Scrubber 2847 | -9/Scraptown | Received an X-ray algorithm 3056 | -9/Scraptown | Visited TADAMA 3100 | -9/Scraptown | Visited Spacefarers 3197 | -9/Scraptown | Visited Cyclists 3252 | -9/Scraptown | Visited Bundlers 3317 | -9/Scraptown | Scanned Subdweller tech in exchange for log data 3320 | -9/Scraptown | Learned Research security intel 3322 | -9/Scraptown | Learned Research stockpile data 3324 | -9/Scraptown | Learned 12 Factory zone layouts 3941 | -9/Scraptown | Discovered new exit (range 7) 4268 | -9/Scraptown | Visited Fellowship of the Rings 4317 | -9/Scraptown | Visited CR-KLE's Repair Center 4334 | -9/Scraptown | CR-KLE repaired 4 parts 4541 | -9/Scraptown | Visited UFD Registry 4541 | -9/Scraptown | Registered with UFD as "Gammabox" 4640 | -9/Scraptown | Entered Cyclist Reading Room 4816 | -9/Scraptown | Visited Cartography Club 4860 | -9/Scraptown | Found Surveybot 17 Chip 5055 | -9/Scraptown | Found Deep Structural Scanner 5074 | -9/Scraptown | Learned location of Zion (-7) 5074 | -9/Scraptown | Learned location of Testing (-2) 5074 | -9/Scraptown | Learned 12 Materials zone layouts 5074 | -9/Scraptown | Learned 16 Factory zone layouts 5074 | -9/Scraptown | Learned 20 Factory zone layouts 5074 | -9/Scraptown | Learned 4 Mines zone layouts 5074 | -9/Scraptown | Learned 4 Storage zone layouts 5074 | -9/Scraptown | Learned 8 Lower Caves zone layouts 5074 | -9/Scraptown | Learned 12 Lower Caves zone layouts 5074 | -9/Scraptown | Learned 8 Upper Caves zone layouts 5074 | -9/Scraptown | Learned 12 Upper Caves zone layouts 5074 | -9/Scraptown | Learned 8 Proximity Caves zone layouts 5074 | -9/Scraptown | Learned Storage emergency access door positions 5074 | -9/Scraptown | Learned location of 2 exits from Lower Caves 5074 | -9/Scraptown | Learned location of 2 exits from Upper Caves 5074 | -9/Scraptown | Learned location of 3 exits from Proximity Caves 5151 | -9/Scraptown | Visited Infowarlord's Domain 5173 | -9/Scraptown | Found Exp. Terrain Scanner 5215 | -9/Scraptown | Visited A0-MCA Data Center 5227 | -9/Scraptown | Given a B rating by A0-MCA 5233 | -9/Scraptown | Found A0-MCA's Component Scanner 5293 | -9/Scraptown | Discovered new exit (range 10) 5397 | -9/Scraptown | Visited Modified Component R&D 5462 | -9/Scraptown | Visited Research Penetration Think Tank 5484 | -9/Scraptown | Visited DA-N13 Charitable Foundation 5489 | -9/Scraptown | Found DCF Scrap (25 items) 5549 | -9/Scraptown | Visited LU-1G1's Boring Crew 5643 | -9/Scraptown | Visited Science Guys 6117 | -9/Scraptown | Visited Analyses Database 6158 | -9/Scraptown | Visited Derelict Rescue Squad 6187 | -9/Scraptown | Found DRS Beacon 6324 | -9/Scraptown | Met Optimus 6324 | -9/Scraptown | Accepted into 0bPrime 6446 | -9/Scraptown | Entered Factory 6446 | -6/Factory | Evolved 8 slots: Power x1, Propulsion x2, Utility x4, Weapon x1 6447 | -6/Factory | Identified exit to Lower Caves 6448 | -6/Factory | Identified exit to Extension 6448 | -6/Factory | Identified exit to Factory 6448 | -6/Factory | Attached Arachnoskeleton, gained temporary slots: Propulsion x3 6449 | -6/Factory | Loaded intel: 4 garrison access locations 6505 | -6/Factory | Loaded intel: 8 recycling unit locations 6747 | -6/Factory | Learned location of Protoforge (-3) 7401 | -6/Factory | Entered Extension 7809 | -6/Extension | Build established: Tank 8022 | -6/Extension | Rescued a captive Derelict 8224 | -6/Extension | Build established: Commander-Tank 8424 | -6/Extension | Spotted B-75 Beast 8447 | -6/Extension | Spotted B-75 Beast 8458 | -6/Extension | Allies destroyed B-75 Beast 8486 | -6/Extension | Lost 3 parts (1p1u1w) 8529 | -6/Extension | Loaded intel: 1 recycling unit location 8644 | -6/Extension | Rescued a captive Derelict 8646 | -6/Extension | Rescued a captive Derelict 8681 | -6/Extension | Rescued a captive Derelict 8782 | -6/Extension | Rescued a captive Derelict 8803 | -6/Extension | Rescued A7 8841 | -6/Extension | Discovered exit to Factory (range 10) 8842 | -6/Extension | Discovered new exit (range 6) 8851 | -6/Extension | Disrupted transfer network 8902 | -6/Extension | Core integrity fell below 50% 8943 | -6/Extension | Lost 4 allies 8976 | -6/Extension | Entered Cetus 8976 | -6/Cetus | Accompanied by 17 allies (A7) 8981 | -6/Cetus | Acquired a Cetus Manufacturing Module code from A7 9003 | -6/Cetus | Spotted Cetus Guard 9005 | -6/Cetus | Spotted Cetus Guard 9006 | -6/Cetus | Spotted Cetus Guard 9009 | -6/Cetus | Spotted Cetus Guard 9025 | -6/Cetus | Allies destroyed Cetus Guard 9029 | -6/Cetus | Destroyed Cetus Guard 9029 | -6/Cetus | Destroyed Cetus Guard 9031 | -6/Cetus | Allies destroyed Cetus Guard 9057 | -6/Cetus | Lost 4 allies 9109 | -6/Cetus | Escorted A7 to Cetus Mainframe 9125 | -6/Cetus | Started Cetus Manufacturing Module 9150 | -6/Cetus | Manufactured an Enhanced Grunt 9175 | -6/Cetus | Manufactured an Enhanced Grunt 9200 | -6/Cetus | Manufactured an Enhanced Grunt 9225 | -6/Cetus | Manufactured an Enhanced Grunt 9227 | -6/Cetus | Build established: Commander-Gunner 9250 | -6/Cetus | Manufactured an Enhanced Grunt 9290 | -6/Cetus | Discovered new exit (range 15) 9317 | -6/Cetus | Spotted Cetus Guard 9318 | -6/Cetus | Spotted Cetus Guard 9322 | -6/Cetus | Spotted Cetus Guard 9326 | -6/Cetus | Spotted Cetus Guard 9331 | -6/Cetus | Allies destroyed Cetus Guard 9335 | -6/Cetus | Allies destroyed Cetus Guard 9342 | -6/Cetus | Allies destroyed Cetus Guard 9347 | -6/Cetus | Allies destroyed Cetus Guard 9367 | -6/Cetus | Discovered exit to Factory (range 16) 9372 | -6/Cetus | Lost 3 allies 9374 | -6/Cetus | Met Revision 17 9639 | -6/Cetus | Entered Archives 9639 | -6/Archives | Accompanied by 14 allies 9701 | -6/Archives | Unable to access archive contents 9712 | -6/Archives | Lost 4 allies 9761 | -6/Archives | Discovered new exit (range 15) 9797 | -6/Archives | Entered Hub_04(d) 9797 | -6/Hub_04(d) | Accompanied by 10 allies 9832 | -6/Hub_04(d) | Discovered exit to Factory (range 25) 9876 | -6/Hub_04(d) | Discovered exit to Factory (range 21) 9883 | -6/Hub_04(d) | Garrison activated, responded to threat 9954 | -6/Hub_04(d) | Network Hub disabled 9958 | -6/Hub_04(d) | Entered Factory 9958 | -5/Factory | Accompanied by 2 allies 9958 | -5/Factory | Evolved 2 slots: Propulsion x1, Utility x1 9959 | -5/Factory | Identified exit to Factory 9959 | -5/Factory | Identified exit to Upper Caves 9977 | -5/Factory | Lost 8 allies 9999 | -5/Factory | Loaded intel: 8 recycling unit locations 10276 | -5/Factory | Lost 3 parts (2n1w) 10392 | -5/Factory | Core integrity fell below 50% 10396 | -5/Factory | Lost 15 parts (2p6n2u5w) 10467 | -5/Factory | Lost 3 parts (3u) 10470 | -5/Factory | Spotted B-75 Beast 10491 | -5/Factory | Core integrity fell below 20% 10491 | -5/Factory | System corruption reached 10% 10509 | -5/Factory | Destroyed by P-70 Sage with High-powered Shock Rifle Last Messages --------------- station. 10490_ Backup Propulsion III tumbles out of repair station. 10490_ Neutrino Reactor explodes. 10490_ Backup Plating III tumbles out of repair station. 10490_ Backup Power III tumbles out of repair station. 10490_ Backup Propulsion III tumbles out of repair station. 10490_ Door malfunctions. 10490_ Slammed into P-70 Sage. 10494_ Destabilizing: Core damaged (-30). 10495_ Slammed into P-70 Sage. 10496_ Imp. Hacking Suite destroyed. 10497_ Acquired Corrupted Backup Laser III. 10497_ Integrated Corrupted Backup Laser III (+7). [Achievement: I Think I Know What's Going On] [Achievement: Tester] Map ----- +----------------------------------------------------+ | ##### ! % % | | ##### [ | | ##### # %% """"" """"""" | | ##### ^ "T"" """"""" | | ##### [% """"""" | | ####### ##"####"## """"""" ######### | | ###### #### # # | | ###### """"""" #### """"""" """ # # | | ###### ! """Y""" #### """"""" """ + # | | ###### + """"""" """ # # | | ###### #### """"""" # # | | ###### #### # # | | ###### "" " """" ## """"""" """"""" ######### | | ###### """" """" ## """"""" """"""" ######### | | ###### """" """" #### """"""" """"""" | | ###### """" """" #### """"""" """"""" | | ###### #### | | ###### ! ! #### | | ###################### | | ###################### ########/################## | | ###################### ## ######## | | ###################### ## ######## | | ###################### ## ######## | | ###################### ## ######## """ | | ###################### ## ######## """ | | ############### # ##@= * ######## """ | | ############### "T" # ## ! " ######## """ | | ############### + /p"R== ######## """ | | ############### #### """ ######## """ | | ############### #### "" ! ######## | | ############### #### ######## | | #?################################################ | | | | | | | | | | | | | | | | | | | | | | | | | | | | | | | | | | | | | +----------------------------------------------------+ Best States ------------- Heat Dissipation 78 Coolant Potential 65 Energy Generation 39 Energy Capacity 565 Matter Stores 300 Matter Capacity 300 Sight Range 16 Robot Scan Range 15 Terrain Scan Range 30 Terrain Scan Density 1210 Armor Coverage 225 Resistance: KI 20 Phase Shifting 5 Evasion (%) 56 Core Analysis 6 Recoil Reduction 2 Offensive Hacking 12 Defensive Hacking 12 Item Schematics ----------------- None Robot Schematics ------------------ None Fabricated ------------ Nothing Repaired ---------- Nothing Studied --------- None Alien Tech Used ----------------- None Achievements -------------- Hulk Smash I Think I Know What's Going On Nice Directions, Buddy Tester We Are Legion Challenges ------------ None Game ------ Seed GlidesysTerrainNanosword Manual? 0 Play Time 01:28:18 Cumulative 97.3 hours Start 2026.02.21 @ 13:43:39 End 2026.02.21 @ 18:41:07 Sessions 9 Manual Loads 0 Difficulty Rogue Special Mode None Game No. 123 Rogue 48 Adventurer 75 Explorer 0 Win Type - Total 4 Types 4/0/0/0/0/0/0/0/0/0 Lore% 51 Gallery% 50 Achievement% 40 Wizard Run 0 Options --------- Layout 2 ASCII 0 Keyboard 0 Movement Numpad Keybinds 0 Fullscreen 2 Font 24/Smallcaps Map View 50x44 Zoom Use 0% Tactical HUD 1 Map Filters NONE Filters NONE Steam 1 RUN: ec3807ba-f8c2-46b1-a4f6-59878515581e